bitfinex/quotes_SOLUSD_20251115
["timestamp","ask_amount","ask_price","bid_price","bid_amount"]
[1763191252815,0.61,143.1,143.07,3.34107384]
[1763191254211,5.30449319,143.11,143.08,0.7]
[1763191254801,5.30449319,143.11,143.08,3.34107384]
[1763191255007,4.69449319,143.11,143.08,3.34107384]
[1763191255203,4.69449319,143.11,143.09,0.7]
[1763191256095,4.69449319,143.11,143.09,3.34107384]
[1763191256421,4.69449319,143.11,143.1,2.64107384]
[1763191256602,4.69449319,143.11,143.1,3.34107384]
[1763191256801,4.69449319,143.11,143.07,0.7]
[1763191256990,5.30449319,143.11,143.08,3.34107384]
[1763191257392,4.69449319,143.11,143.09,3.34107384]
[1763191260821,104.3,143.12,143.1,3.34107384]
[1763191261016,104.3,143.12,143.1,0.7]
[1763191261220,125.30619682,143.12,143.1,0.7]
[1763191261519,125.91619682,143.12,143.08,3.34107384]
[1763191261728,107.55107384,143.12,143.09,0.7]
[1763191262037,17.4758579,143.11,143.09,0.7]
[1763191264824,104.91,143.12,143.09,0.7]
[1763191265009,13.97972852,143.11,143.09,0.7]
[1763191265214,104.91,143.12,143.09,0.7]
[1763191265710,6.98953561,143.11,143.09,0.7]
[1763191265910,1.69145072,143.1,143.04,0.7]
[1763191266112,1.69145072,143.08,143.04,0.7]
[1763191266514,9.78882769,143.07,143.04,0.7]
[1763191266714,104.3,143.09,143.06,1.69145072]
[1763191266918,104.3,143.09,143.06,2.39145072]
[1763191267127,9.78882769,143.08,143.05,1.69145072]
[1763191267426,10.39882769,143.08,143.05,0.7]
[1763191268327,12.09027841,143.08,143.05,0.7]
[1763191268528,10.39882769,143.08,143.05,0.7]
[1763191268910,10.39882769,143.08,143.05,2.39145072]
[1763191269809,9.78882769,143.08,143.05,2.39145072]
[1763191270631,9.78882769,143.08,143.05,1.69145072]
[1763191270815,9.78882769,143.08,143.06,0.67]
[1763191271911,10.39882769,143.08,143.05,2.36145072]
[1763191273733,9.78882769,143.08,143.06,0.69]
[1763191273935,9.78882769,143.08,143.06,2.38145072]
[1763191274146,9.78882769,143.08,143.07,1.69145072]
[1763191274437,104.3,143.09,143.07,2.38145072]
[1763191274624,2.80141471,143.08,143.07,2.38145072]
[1763191274943,104.3,143.09,143.07,2.38145072]
[1763191275132,111.29053509,143.09,143.07,2.38145072]
[1763191275337,104.3,143.09,143.07,2.38145072]
[1763191275637,6.99053509,143.08,143.07,2.38145072]
[1763191277829,104.3,143.09,143.07,2.38145072]
[1763191278029,124.57958086,143.09,143.07,2.38145072]
[1763191279048,124.57958086,143.09,143.07,1.69145072]
[1763191279233,124.57958086,143.09,143.07,2.38145072]
[1763191281634,124.57958086,143.09,143.07,0.69]
[1763191281822,124.57958086,143.09,143.07,2.38145072]
[1763191282021,104.3,143.09,143.08,2.38145072]
[1763191282821,6.99047912,143.1,143.08,2.38145072]
[1763191283022,104.3,143.12,143.09,2.38145072]
[1763191283250,118.056282,143.12,143.1,2.38145072]
[1763191283547,13.756282,143.12,143.11,2.38145072]
[1763191283725,0.61,143.14,143.11,2.38145072]
[1763191283927,19.04737851,143.14,143.11,2.38145072]
[1763191284259,0.61,143.14,143.11,1.69145072]
[1763191284421,23.2612,143.14,143.11,1.69145072]
[1763191284623,17.47585421,143.13,143.11,1.69145072]
[1763191284825,18.08585421,143.13,143.1,2.38145072]
[1763191285236,17.47585421,143.13,143.1,2.38145072]
[1763191285433,17.47585421,143.13,143.11,0.69]
[1763191288641,17.47585421,143.13,143.1,2.38145072]
[1763191289333,17.47585421,143.13,143.1,1.69145072]
[1763191289535,17.47585421,143.13,143.11,0.69]
[1763191290351,0.61,143.12,143.08,2.38145072]
[1763191291039,17.47585421,143.11,143.08,2.38145072]
[1763191291446,17.47585421,143.11,143.07,1.69145072]
[1763191291652,0.61,143.1,143.07,1.69145072]
[1763191291856,0.61,143.1,143.07,2.38145072]
[1763191292057,23.2612,143.1,143.07,2.38145072]
[1763191292242,21.00913897,143.09,143.07,2.38145072]
[1763191297638,21.00913897,143.09,143.07,1.69145072]
[1763191297839,21.00913897,143.09,143.07,2.38145072]
[1763191298050,21.00913897,143.09,143.08,1.69145072]
[1763191301263,21.00913897,143.09,143.07,2.38145072]
[1763191301853,21.00913897,143.09,143.07,0.69]
[1763191302077,21.00913897,143.09,143.07,2.38145072]
[1763191303147,23.2612,143.1,143.07,2.38145072]
[1763191303344,39.43040554,143.1,143.08,2.37145072]
[1763191303763,22.6512,143.1,143.08,2.37145072]
[1763191304062,43.66033897,143.1,143.08,2.37145072]
[1763191304363,21.00913897,143.1,143.08,2.37145072]
[1763191308377,21.00913897,143.1,143.09,0.68]
[1763191309756,104.3,143.14,143.09,2.37145072]
[1763191309956,4.68456166,143.13,143.1,2.37145072]
[1763191310141,11.67460222,143.13,143.11,1.69145072]
[1763191310344,4.68456166,143.13,143.11,2.37145072]
[1763191310967,4.68456166,143.13,143.11,1.69145072]
[1763191311770,4.68444961,143.13,143.11,1.69145072]
[1763191311972,4.68444961,143.13,143.11,2.37145072]
[1763191312177,104.91,143.14,143.11,2.37145072]
[1763191313270,104.72574578,143.14,143.11,2.37145072]
[1763191313583,104.11574578,143.14,143.12,2.37145072]
[1763191313772,104.11574578,143.14,143.13,1.69145072]
[1763191314069,0.81,143.18,143.13,2.37145072]
[1763191314270,28.14513131,143.18,143.14,2.37145072]
[1763191314477,4.68393131,143.17,143.14,2.37145072]
[1763191316570,4.68393131,143.17,143.14,1.69145072]
[1763191316771,22.6512,143.16,143.15,2.37145072]
[1763191317356,0.2,143.18,143.15,9.35709997]
[1763191317583,0.2,143.18,143.17,1.69145072]
[1763191317782,0.2,143.18,143.17,2.37145072]
[1763191320965,0.2,143.18,143.17,0.68]
[1763191321169,0.2,143.18,143.17,2.37145072]
[1763191321367,0.81,143.18,143.14,0.68]
[1763191321579,0.81,143.18,143.15,1.69145072]
[1763191323586,0.81,143.18,143.15,2.37145072]
[1763191323965,0.2,143.18,143.16,0.68]
[1763191324280,0.2,143.18,143.16,2.37145072]
[1763191324893,0.2,143.18,143.16,3.32010705]
[1763191326576,0.2,143.18,143.16,2.64010705]
[1763191326765,0.2,143.18,143.16,3.32010705]
[1763191327189,0.2,143.18,143.16,2.64010705]
[1763191327481,0.2,143.18,143.16,3.32010705]
[1763191328076,0.2,143.18,143.16,2.64010705]
[1763191328598,0.2,143.18,143.15,3.32010705]
[1763191329298,74.92574578,143.19,143.15,3.32010705]
[1763191329871,0.61,143.18,143.15,3.32010705]
[1763191330270,0.61,143.18,143.15,2.64010705]
[1763191330474,0.61,143.18,143.14,2.64010705]
[1763191330677,0.61,143.18,143.09,25.59320757]
[1763191330678,22.6512,143.16,143.12,3.34010705]
[1763191330895,25.29130705,143.16,143.12,3.34010705]
[1763191331097,25.90130705,143.16,143.13,0.7]
[1763191331285,23.2612,143.16,143.13,0.7]
[1763191333505,22.6512,143.16,143.13,0.7]
[1763191333684,22.6512,143.16,143.13,3.34010705]
[1763191334085,22.6512,143.16,143.13,3.31010705]
[1763191334290,23.2612,143.16,143.13,3.31010705]
[1763191334611,23.2612,143.16,143.14,0.67]
[1763191334612,22.6512,143.16,143.14,0.67]
[1763191334907,22.6512,143.16,143.13,2.64010705]
[1763191335087,23.2612,143.16,143.13,3.31010705]
[1763191336414,22.6512,143.16,143.14,3.31010705]
[1763191336800,22.6512,143.16,143.14,2.64010705]
[1763191336995,22.6512,143.16,143.15,0.67]
[1763191353204,22.6512,143.16,143.14,0.67]
[1763191354121,0.61,143.15,143.11,2.64010705]
[1763191354328,25.90130705,143.15,143.11,0.67]
[1763191354627,3.25010705,143.15,143.09,2.64010705]
[1763191354806,0.61,143.14,143.11,0.67]
[1763191355003,7.9250151,143.14,143.11,0.67]
[1763191355601,7.9250151,143.14,143.1,2.64010705]
[1763191355820,7.9250151,143.14,143.1,3.31010705]
[1763191356405,7.3150151,143.14,143.09,2.64010705]
[1763191356611,0.61,143.13,143.09,3.31010705]
[1763191356816,3.25010705,143.13,143.09,0.67]
[1763191358224,2.64010705,143.12,143.09,0.67]
[1763191358610,3.25010705,143.12,143.09,0.67]
[1763191358927,2.64010705,143.12,143.09,0.67]
[1763191359225,2.64010705,143.1,143.05,22.6512]
[1763191359426,25.29130705,143.08,143.05,0.67]
[1763191359611,2.64010705,143.07,143.05,0.67]
[1763191359817,2.64010705,143.07,143.02,2.64010705]
[1763191360017,2.64010705,143.07,143.04,0.67]
[1763191360221,3.25010705,143.07,143.04,0.67]
[1763191360831,3.25010705,143.06,143.03,0.67]
[1763191361213,3.25010705,143.06,143.0,2.64010705]
[1763191361214,2.64010705,143.05,143.0,2.64010705]
[1763191361532,25.29130705,143.04,142.99,2.74010705]
[1763191361842,2.64010705,143.02,142.99,0.1]
[1763191362007,2.64010705,143.01,142.99,0.1]
[1763191362410,3.25010705,143.01,142.99,0.1]
[1763191362725,2.64010705,143.01,142.99,0.1]
[1763191364816,3.25010705,143.01,142.99,0.1]
[1763191367051,2.64010705,143.01,142.99,0.1]
[1763191370548,77.56585283,143.02,142.99,0.77]
[1763191373522,2.64010705,143.01,142.99,0.1]
[1763191373724,77.0980144,143.0,142.99,0.1]
[1763191373925,87.49684209,143.0,142.99,0.1]
[1763191379147,63.18109631,143.0,142.99,0.1]
[1763191379526,65.82120336,143.0,142.99,0.1]
[1763191379730,63.18109631,143.0,142.99,0.1]
[1763191380748,32.44002769,142.97,142.96,0.1]
[1763191380967,35.08013474,142.97,142.96,0.1]
[1763191381252,35.83229631,142.97,142.96,0.1]
[1763191381446,38.63705036,142.97,142.96,0.1]
[1763191381848,35.99694331,142.97,142.96,0.1]
[1763191382148,38.63705036,142.97,142.96,0.1]
[1763191382324,9.93098926,142.95,142.94,0.1]
[1763191382530,12.57109631,142.95,142.94,0.1]
[1763191382733,13.18109631,142.95,142.94,0.1]
[1763191383342,12.57109631,142.95,142.94,0.1]
[1763191383748,35.22229631,142.95,142.94,0.1]
[1763191384878,34.27796017,142.95,142.94,0.1]
[1763191385846,24.34697091,142.95,142.94,0.1]
[1763191386161,1.69577091,142.96,142.94,0.77]
[1763191386465,22.6512,142.96,142.94,0.77]
[1763191386654,1.69577091,142.97,142.94,0.77]
[1763191386848,22.6512,142.96,142.94,0.77]
[1763191389548,1.69577091,142.99,142.94,2.46577091]
[1763191389775,22.6512,142.97,142.94,2.46577091]
[1763191390076,1.83793248,143.0,142.95,2.36577091]
[1763191390377,22.6512,142.98,142.96,0.67]
[1763191393782,126.9512,142.98,142.96,0.67]
[1763191396165,128.64697091,142.98,142.94,0.77]
[1763191396479,129.25697091,142.98,142.95,0.67]
[1763191396676,126.9512,142.98,142.95,0.67]
[1763191396890,128.64697091,142.98,142.95,0.67]
[1763191398272,104.3,142.97,142.95,0.67]
[1763191398480,104.3,142.96,142.95,0.67]
[1763191403888,12.59299187,143.01,142.95,2.36577091]
[1763191403889,104.3,143.0,142.95,2.36577091]
[1763191404091,104.3,142.99,142.97,1.69577091]
[1763191404280,104.3,142.99,142.98,0.67]
[1763191405480,104.3,142.99,142.98,2.36577091]
[1763191406697,22.6512,143.01,142.98,2.36577091]
[1763191406888,22.6512,143.01,142.99,0.67]
[1763191407725,1.69577091,143.03,142.99,2.36577091]
[1763191407888,16.27344192,143.04,143.0,0.67]
[1763191408083,4.64668175,143.03,143.0,0.67]
[1763191408283,6.95245266,143.03,142.98,1.69577091]
[1763191408483,0.61,143.02,142.98,2.36577091]
[1763191408910,6.95245266,143.03,142.99,0.67]
[1763191412221,5.25668175,143.03,142.99,2.36577091]
[1763191412512,6.95245266,143.03,142.99,0.67]
[1763191414008,0.61,143.02,142.98,0.67]
[1763191414207,6.34245266,143.03,142.99,0.67]
[1763191414390,29.60365266,143.03,142.99,0.67]
[1763191414594,2.30577091,143.02,142.99,0.67]
[1763191415607,22.6512,143.0,142.99,0.67]
[1763191415914,104.91,143.01,142.97,2.36577091]
[1763191416108,104.91,143.01,142.98,0.67]
[1763191416428,0.67,143.08,143.0,1.69577091]
[1763191416709,50.0,143.12,143.07,1.69577091]
[1763191416710,4.65317582,143.11,143.07,1.69577091]
[1763191416913,0.81216157,143.12,143.09,1.69577091]
[1763191417215,23.3212,143.11,143.08,1.69577091]
[1763191417691,23.3212,143.11,143.04,6.78308364]
[1763191417692,0.67,143.13,143.09,2.36577091]
[1763191417893,0.67,143.12,143.09,1.69577091]
[1763191418096,6.34533923,143.14,143.09,1.69577091]
[1763191418097,0.67,143.13,143.1,1.69577091]
[1763191418407,17.0,143.16,143.11,1.69577091]
[1763191418408,18.69577091,143.16,143.11,1.69577091]
[1763191418585,19.36577091,143.16,143.11,2.36577091]
[1763191418789,0.67,143.15,143.11,2.36577091]
[1763191419087,0.67,143.15,143.11,0.67]
[1763191419287,0.67,143.15,143.12,1.69577091]
[1763191419584,22.6512,143.14,143.12,1.69577091]
[1763191419989,0.67,143.15,143.12,1.69577091]
[1763191420410,23.3212,143.15,143.12,1.69577091]
[1763191421295,23.3212,143.15,143.11,2.36577091]
[1763191423019,23.3212,143.15,143.08,6.9890032]
[1763191423020,2.36577091,143.14,143.09,1.69577091]
[1763191423519,0.67,143.13,143.09,1.69577091]
[1763191423816,104.3,143.13,143.11,1.69577091]
[1763191424325,104.3,143.13,143.12,0.71]
[1763191424528,104.3,143.13,143.11,2.40577091]
[1763191425397,104.3,143.13,143.11,1.69577091]
[1763191425608,104.3,143.13,143.1,0.71]
[1763191425808,104.3,143.13,143.11,1.69577091]
[1763191426400,104.3,143.13,143.07,29.64062926]
[1763191426598,104.3,143.13,143.09,1.69577091]
[1763191426599,104.97,143.13,143.09,1.69577091]
[1763191427014,104.97,143.13,143.09,2.40577091]
[1763191427696,104.3,143.13,143.11,1.69577091]
[1763191428119,104.3,143.13,143.12,1.69577091]
[1763191429630,104.3,143.13,143.12,2.40577091]
[1763191429829,104.3,143.13,143.1,0.71]
[1763191430039,104.3,143.13,143.11,1.69577091]
[1763191430230,104.3,143.13,143.12,1.69577091]
[1763191431127,104.3,143.13,143.11,1.69577091]
[1763191431634,104.3,143.13,143.11,2.40577091]
[1763191432525,0.67,143.12,143.1,1.69577091]
[1763191432912,0.67,143.12,143.09,1.69577091]
[1763191433337,0.67,143.12,143.09,2.40577091]
[1763191435317,0.67,143.12,143.1,1.69577091]
[1763191435524,104.3,143.13,143.1,1.69577091]
[1763191435835,104.3,143.13,143.11,1.69577091]
[1763191436021,104.97,143.13,143.11,1.69577091]
[1763191437335,104.97,143.13,143.1,1.69577091]
[1763191438940,104.97,143.13,143.11,1.69577091]
[1763191439613,104.97,143.13,143.1,1.69577091]
[1763191439823,104.97,143.13,143.09,0.71]
[1763191440023,104.97,143.13,143.1,1.69577091]
[1763191440542,104.97,143.13,143.11,1.69577091]
[1763191440746,104.3,143.13,143.11,1.69577091]
[1763191440923,104.3,143.13,143.12,1.69577091]
[1763191443148,104.3,143.13,143.11,1.69577091]
[1763191443342,104.3,143.13,143.12,1.69577091]
[1763191443546,0.2,143.16,143.12,2.40577091]
[1763191443842,0.2,143.16,143.15,1.69577091]
[1763191444343,0.2,143.16,143.15,2.40577091]
[1763191444924,0.2,143.16,143.15,10.33513023]
[1763191446440,0.2,143.16,143.15,3.34945088]
[1763191447530,0.2,143.16,143.15,10.33513023]
[1763191448147,0.2,143.16,143.15,3.34945088]
[1763191448452,0.2,143.16,143.15,10.33513023]
[1763191448658,0.2,143.16,143.15,12.97458111]
[1763191448856,0.2,143.21,143.16,9.78882769]
[1763191449024,0.2,143.21,143.2,2.63945088]
[1763191449520,0.2,143.21,143.2,3.34945088]
[1763191453563,0.87,143.21,143.16,2.63945088]
[1763191453869,0.2,143.21,143.2,2.63945088]
[1763191454030,0.2,143.21,143.2,3.33945088]
[1763191456558,0.2,143.21,143.2,2.63945088]
[1763191456765,0.2,143.21,143.2,3.33945088]
[1763191457659,0.2,143.21,143.2,2.63945088]
[1763191459657,0.2,143.21,143.2,10.3226911]
[1763191459957,0.2,143.21,143.2,3.33945088]
[1763191461058,0.2,143.21,143.2,10.3226911]
[1763191461759,0.2,143.21,143.2,20.11151879]
[1763191462863,0.2,143.21,143.2,45.54433124]
[1763191463241,0.2,143.22,143.21,0.14216157]
[1763191463579,0.2,143.22,143.21,6.12106333]
[1763191464064,0.2,143.22,143.21,13.10381593]
[1763191464561,0.2,143.22,143.21,22.75048205]
[1763191465137,0.2,143.22,143.21,22.89264362]
[1763191474683,0.2,143.23,143.22,9.78882769]
[1763191474863,0.2,143.23,143.22,15.76772945]
[1763191475755,0.2,143.25,143.24,32.58218926]
[1763191475957,0.2,143.27,143.26,0.14216157]
[1763191476178,0.2,143.31,143.27,9.78882769]
[1763191476356,0.2,143.31,143.27,13.12827857]
[1763191476556,0.2,143.31,143.27,20.10810686]
[1763191476797,0.2,143.31,143.29,32.44002769]
[1763191476994,0.2,143.31,143.29,35.07947857]
[1763191477198,0.2,143.31,143.29,35.77947857]
[1763191477485,0.2,143.31,143.3,2.78161245]
[1763191477687,0.2,143.33,143.32,22.6512]
[1763191477886,0.2,143.33,143.32,28.63010176]
[1763191478385,0.2,143.37,143.33,9.78882769]
[1763191478616,0.87,143.37,143.36,2.63945088]
[1763191478790,0.2,143.37,143.36,2.63945088]
[1763191479364,0.87,143.37,143.36,2.63945088]
[1763191480292,0.2,143.37,143.32,23.23418388]
[1763191480459,0.67,143.36,143.32,30.21157537]
[1763191481568,0.67,143.36,143.35,2.63945088]
[1763191485779,0.2,143.37,143.35,2.63945088]
[1763191485985,0.87,143.37,143.36,2.63945088]
[1763191489792,0.2,143.37,143.36,2.63945088]
[1763191490397,0.2,143.37,143.36,25.29065088]
[1763191490902,0.2,143.37,143.36,32.9460973]
[1763191491679,0.2,143.37,143.36,42.73492499]
[1763191493395,0.2,143.37,143.36,42.87708656]
[1763191494113,0.87,143.37,143.36,25.29065088]
[1763191494701,0.87,143.37,143.33,6.97674141]
[1763191494897,20.96069868,143.48,143.36,9.6148973]
[1763191495096,2.63945088,143.46,143.41,2.63945088]
[1763191495308,25.29065088,143.45,143.4,2.63945088]
[1763191495714,22.6512,143.45,143.41,2.63945088]
[1763191496141,25.29065088,143.45,143.4,2.63945088]
[1763191496418,22.6512,143.45,143.41,2.63945088]
[1763191496992,0.67,143.44,143.41,2.63945088]
[1763191498017,0.67,143.44,143.42,2.63945088]
[1763191498215,0.67,143.44,143.43,2.63945088]
[1763191500514,0.67,143.45,143.43,9.61143644]
[1763191500710,0.67,143.45,143.44,2.63945088]
[1763191501510,0.67,143.45,143.41,0.68]
[1763191501713,0.67,143.45,143.44,2.63945088]
[1763191502694,22.6512,143.49,143.44,2.63945088]
[1763191503004,0.1,143.52,143.48,2.63945088]
[1763191503191,0.1,143.52,143.5,2.63945088]
[1763191503390,0.1,143.52,143.51,2.63945088]
[1763191503807,0.1,143.52,143.51,5.95890176]
[1763191504201,0.1,143.52,143.51,0.68]
[1763191504620,0.1,143.52,143.51,3.31945088]
[1763191505019,0.1,143.52,143.51,10.2876064]
[1763191505325,0.1,143.52,143.51,12.92705728]
[1763191505702,0.1,143.52,143.51,5.95890176]
[1763191506707,0.1,143.52,143.51,12.92705728]
[1763191506910,0.1,143.52,143.51,16.05011022]
[1763191507319,0.1,143.52,143.51,9.0819547]
[1763191507895,0.1,143.52,143.51,16.05011022]
[1763191510011,121.7219593,143.62,143.51,43.4014883]
[1763191510214,1.68039094,143.6,143.55,1.68039094]
[1763191510417,0.67,143.59,143.55,1.68039094]
[1763191511124,0.67,143.59,143.56,1.68039094]
[1763191511296,0.67,143.59,143.57,1.68039094]
[1763191511717,0.67,143.59,143.58,1.68039094]
[1763191513919,0.67,143.59,143.54,6.96655352]
[1763191514122,0.67,143.59,143.57,1.68039094]
[1763191514723,0.67,143.59,143.58,1.68039094]
[1763191516810,0.67,143.59,143.57,1.68039094]
[1763191517922,22.6512,143.58,143.5,0.67]
[1763191518121,0.67,143.59,143.56,1.68039094]
[1763191518330,0.14216157,143.62,143.56,1.68039094]
[1763191518331,0.66,143.58,143.56,1.68039094]
[1763191519000,0.66,143.58,143.55,1.68039094]
[1763191519616,0.66,143.58,143.56,1.68039094]
[1763191519935,0.66,143.58,143.55,1.68039094]
[1763191520227,0.66,143.58,143.54,1.68039094]
[1763191520812,0.66,143.58,143.51,30.28933583]
[1763191521129,0.66,143.58,143.51,29.61933583]
[1763191521316,2.34039094,143.58,143.53,1.68039094]
[1763191521705,0.66,143.57,143.53,1.68039094]
[1763191523023,0.66,143.57,143.51,22.6512]
[1763191523239,0.66,143.57,143.53,1.68039094]
[1763191523812,2.34039094,143.57,143.52,1.68039094]
[1763191524217,0.66,143.56,143.52,1.68039094]
[1763191524430,0.66,143.56,143.53,1.68039094]
[1763191525230,0.66,143.56,143.52,1.68039094]
[1763191525638,2.34039094,143.56,143.48,6.96943077]
[1763191525810,2.34039094,143.55,143.5,1.68039094]
[1763191526134,23.3112,143.54,143.51,1.68039094]
[1763191526507,0.66,143.53,143.51,1.68039094]
[1763191529634,0.66,143.53,143.5,1.68039094]
[1763191530335,0.66,143.53,143.49,1.68039094]
[1763191531226,1.68039094,143.52,143.44,0.67]
[1763191531422,1.68039094,143.52,143.47,1.68039094]
[1763191531629,0.66,143.51,143.47,1.68039094]
[1763191532217,22.6512,143.5,143.46,1.68039094]
[1763191532621,0.66,143.49,143.46,1.68039094]
[1763191533410,0.66,143.49,143.45,1.68039094]
[1763191533731,2.34039094,143.49,143.42,0.67]
[1763191533906,2.34039094,143.49,143.43,1.68039094]
[1763191533907,1.68039094,143.48,143.43,1.68039094]
[1763191534110,0.66,143.47,143.44,1.68039094]
[1763191535120,0.66,143.47,143.45,1.68039094]
[1763191535935,0.66,143.47,143.43,7.64202207]
[1763191536137,0.66,143.47,143.45,1.68039094]
[1763191537331,0.66,143.47,143.43,1.68039094]
[1763191538641,0.66,143.47,143.44,1.68039094]
[1763191538827,0.66,143.47,143.45,1.68039094]
[1763191539229,0.66,143.47,143.44,1.68039094]
[1763191539735,0.66,143.47,143.41,6.97301443]
[1763191539941,0.66,143.47,143.44,1.68039094]
[1763191540641,0.66,143.47,143.43,1.68039094]
[1763191540840,2.34039094,143.47,143.42,1.68039094]
[1763191541254,0.66,143.46,143.42,1.68039094]
[1763191542330,0.66,143.46,143.43,2.35039094]
[1763191543447,0.66,143.46,143.43,1.68039094]
[1763191543742,104.3,143.47,143.45,1.68039094]
[1763191544046,105.0,143.47,143.45,1.68039094]
[1763191544426,104.3,143.47,143.45,2.40039094]
[1763191544826,0.7,143.51,143.46,2.40039094]
[1763191545040,0.7,143.51,143.48,1.68039094]
[1763191549967,22.6512,143.49,143.4,23.73327568]
[1763191550150,1.68039094,143.47,143.42,2.40039094]
[1763191550332,0.7,143.48,143.44,1.68039094]
[1763191550737,0.7,143.48,143.44,2.40039094]
[1763191551651,2.38039094,143.48,143.44,0.72]
[1763191552029,0.7,143.48,143.44,9.37188704]
[1763191552229,0.7,143.47,143.44,7.6914961]
[1763191552430,0.7,143.47,143.44,2.40039094]
[1763191554039,0.7,143.47,143.44,9.37194166]
[1763191554748,0.7,143.47,143.44,2.40039094]
[1763191554950,0.7,143.47,143.44,0.72]
[1763191557358,0.7,143.47,143.44,9.37193854]
[1763191557959,1.68039094,143.49,143.45,0.72]
[1763191558154,0.7,143.51,143.45,2.40039094]
[1763191558355,1.68039094,143.5,143.46,0.72]
[1763191558860,0.7,143.49,143.46,0.72]
[1763191559251,1.68039094,143.5,143.46,0.72]
[1763191559555,27.96753634,143.52,143.47,1.68039094]
[1763191559758,27.96753634,143.52,143.47,2.40039094]
[1763191559759,0.7,143.51,143.47,2.40039094]
[1763191560256,0.7,143.51,143.47,1.68039094]
[1763191560463,0.7,143.51,143.48,0.72]
[1763191560635,2.38039094,143.51,143.47,2.40039094]
[1763191560838,1.68039094,143.5,143.45,2.40039094]
[1763191561037,0.7,143.5,143.46,1.68039094]
[1763191561250,0.7,143.49,143.46,0.72]
[1763191561453,25.03159094,143.49,143.44,2.40039094]
[1763191561668,25.03159094,143.49,143.45,0.72]
[1763191561961,0.7,143.48,143.45,0.72]
[1763191562145,2.38039094,143.48,143.43,2.40039094]
[1763191562337,0.7,143.47,143.44,0.72]
[1763191563239,22.6512,143.5,143.44,2.40039094]
[1763191563459,0.7,143.47,143.44,2.40039094]
[1763191563761,1.68039094,143.5,143.45,2.40039094]
[1763191563962,1.68039094,143.52,143.47,1.68039094]
[1763191564142,2.38039094,143.53,143.48,1.68039094]
[1763191564460,0.7,143.52,143.49,0.72]
[1763191570450,0.7,143.52,143.45,6.97106945]
[1763191570758,2.62788731,143.51,143.46,2.62788731]
[1763191570958,0.7,143.5,143.46,2.62788731]
[1763191571467,0.7,143.5,143.47,2.62788731]
[1763191571661,0.7,143.5,143.46,2.62788731]
[1763191571864,25.27908731,143.49,143.41,9.78882769]
[1763191572053,25.27908731,143.49,143.45,2.62788731]
[1763191572054,0.69,143.48,143.45,2.62788731]
[1763191572366,0.69,143.49,143.46,2.62788731]
[1763191572767,0.69,143.49,143.47,2.62788731]
[1763191573271,0.65,143.51,143.48,2.62788731]
[1763191573457,0.65,143.5,143.48,2.62788731]
[1763191574168,0.65,143.5,143.47,2.62788731]
[1763191574471,0.65,143.5,143.46,3.33788731]
[1763191576375,0.65,143.5,143.47,2.62788731]
[1763191578576,0.65,143.5,143.46,3.33788731]
[1763191578874,0.65,143.5,143.47,2.62788731]
[1763191580578,0.65,143.5,143.45,0.71]
[1763191580763,0.65,143.5,143.46,2.62788731]
[1763191581268,0.65,143.5,143.46,3.33788731]
[1763191582882,0.65,143.5,143.47,2.62788731]
[1763191583057,0.65,143.5,143.47,3.33788731]
[1763191583255,0.65,143.5,143.48,2.62788731]
[1763191584369,0.65,143.5,143.47,3.33788731]
[1763191588559,0.65,143.5,143.47,2.62788731]
[1763191589182,0.65,143.5,143.46,3.33788731]
[1763191589763,0.65,143.5,143.46,0.71]
[1763191590061,0.65,143.5,143.46,3.33788731]
[1763191591280,0.65,143.5,143.46,0.71]
[1763191591579,0.65,143.5,143.46,3.33788731]
[1763191592081,104.3,143.49,143.47,3.33788731]
[1763191592584,104.3,143.49,143.47,2.62788731]
[1763191592780,104.3,143.49,143.48,3.33788731]